fUSD/lending_fUSD_20260219
["ID","MTS","AMOUNT","RATE_DAILY","PERIOD"]
[405971882,1771485349653,-1200.0,7.599e-05,2]
[405971883,1771485349677,-150.0,7.599e-05,2]
[405971884,1771485349702,-7391.60005517,7.6e-05,2]
[405971885,1771485349725,-14633.20011037,7.6e-05,2]
[405971886,1771485349750,-3367.19983446,7.6e-05,2]
[405971887,1771485472474,2125.94868451,7e-05,2]
[405971888,1771485490929,168.49897551,7.5e-05,2]
[405971893,1771485930704,226.82906856,0.0002,120]
[405971894,1771485932540,3974.98068907,0.0002,120]
[405971898,1771486117153,1317.99757632,0.0002,120]
[405971899,1771486117814,4480.19266605,0.0002,120]
[405971924,1771486231777,-1926.692,7.35e-05,2]
[405971925,1771486231786,-157.517,7.35e-05,2]
[405971926,1771486231797,-1200.0,7.397e-05,2]
[405971927,1771486231807,-150.0,7.398e-05,2]
[405971928,1771486231817,-81453.78866095,7.399e-05,2]
[405971929,1771486231829,-5525.50018971,7.399e-05,2]
[405971930,1771486231840,-1184.84626197,7.399e-05,2]
[405971931,1771486231895,-2977.0394641,7.399e-05,2]
[405971961,1771486240175,-19.75685172,7.399e-05,2]
[405971962,1771486240293,-2425.33,7.399e-05,2]
[405971963,1771486240390,-779.90441637,7.399e-05,2]
[405972014,1771486244607,-925.9169098,7.399e-05,2]
[405972016,1771486245601,-500.0,7.399e-05,2]
[405972018,1771486245712,-1000.0,7.399e-05,2]
[405972028,1771486245822,-720.69661148,7.399e-05,2]
[405972029,1771486245913,-284.44599041,7.399e-05,2]
[405972030,1771486246004,-269.34,7.399e-05,2]
[405972034,1771486569066,152.0409829,0.0001912,120]
[405972035,1771486737854,157.87,5.872e-05,2]
[405972036,1771486738050,157.87,6.217e-05,2]
[405972037,1771486738273,157.87,6.562e-05,2]
[405972038,1771486738445,157.87,6.908e-05,2]
[405972039,1771487044362,99368.52,7e-05,2]
[405972040,1771487404098,-1200.0,6.898e-05,2]
[405972041,1771487404220,209.0,6.898e-05,2]
[405972042,1771487409722,-1000000.0,6.899e-05,2]
[405972049,1771487431979,-151.0,6.896e-05,2]
[405972050,1771487431988,-684.60817854,6.899e-05,2]
[405972051,1771487431999,-346.84803172,6.899e-05,2]
[405972052,1771487432023,-456.50541151,6.899e-05,2]
[405972053,1771487432069,-343.01153381,6.899e-05,2]
[405972054,1771487432081,-501.0,6.899e-05,2]
[405972055,1771487432102,-1445.03891421,6.899e-05,2]
[405972056,1771487432115,-2351.54804654,6.899e-05,2]
[405972057,1771487432155,-1000.0,6.899e-05,2]
[405972058,1771487432168,-910.24223027,6.899e-05,2]
[405972059,1771487432184,-289.68515909,6.899e-05,2]
[405972060,1771487432196,-1212028.23296156,6.899e-05,2]
[405972061,1771487432208,-154477.13098515,6.899e-05,2]
[405972062,1771487432220,-142316.22400855,6.899e-05,2]
[405972063,1771487432231,-171062.65908382,6.899e-05,2]
[405972077,1771487438074,-352.2251544,6.898e-05,2]
[405972078,1771487438085,-147.7748456,6.898e-05,2]
[405972079,1771487438097,-500.0,6.898e-05,2]
[405972080,1771487438108,-500.0,6.898e-05,2]
[405972081,1771487438118,-500.0,6.898e-05,2]
[405972082,1771487438127,-500.0,6.898e-05,2]
[405972083,1771487438137,-500.0,6.898e-05,2]
[405972084,1771487438147,-500.0,6.898e-05,2]
[405972085,1771487438156,-500.0,6.898e-05,2]
[405972086,1771487438166,-500.0,6.898e-05,2]
[405972087,1771487438176,-512.14817849,6.898e-05,2]
[405972088,1771487438185,-500.0,6.898e-05,2]
[405972089,1771487438194,-500.0,6.898e-05,2]
[405972090,1771487438203,-500.0,6.898e-05,2]
[405972091,1771487438212,-500.0,6.898e-05,2]
[405972092,1771487438221,-500.0,6.898e-05,2]
[405972093,1771487438230,-500.0,6.898e-05,2]
[405972094,1771487438239,-500.0,6.898e-05,2]
[405972095,1771487438249,-137.63609325,6.898e-05,2]
[405972096,1771487438267,-362.36390675,6.898e-05,2]
[405972097,1771487438276,-500.0,6.898e-05,2]
[405972098,1771487438286,-500.0,6.898e-05,2]
[405972099,1771487438295,-8609.86949511,6.899e-05,2]
[405972100,1771487438306,-2706.24449741,6.899e-05,2]
[405972101,1771487438316,-992.93339425,6.899e-05,2]
[405972102,1771487438352,-4103.70418251,6.899e-05,2]
[405972282,1771487440183,-418.54789703,6.899e-05,2]
[405972289,1771487440236,-18727.48081425,6.899e-05,2]
[405972291,1771487440247,-81799.71346503,6.899e-05,2]
[405972294,1771487440257,-19999.755009,6.899e-05,2]
[405972322,1771487440605,-674429.01670064,6.899e-05,2]
[405972324,1771487440614,-250.0,6.9e-05,2]
[405972326,1771487440623,-816.85055706,6.9e-05,2]
[405972328,1771487440633,-1483.70111416,6.9e-05,2]
[405972330,1771487440642,-2017.18155977,6.9e-05,2]
[405972332,1771487440651,-3750.99300814,6.9e-05,2]
[405972334,1771487440660,-1532.32,6.913e-05,2]
[405972336,1771487440669,-150.0,6.998e-05,2]
[405972337,1771487440677,-1268.80789691,6.999e-05,2]
[405972339,1771487440686,-1500.0,7.045e-05,2]
[405972341,1771487440695,-1541.353,7.054e-05,2]
[405972343,1771487440704,-157.518,7.054e-05,2]
[405972345,1771487440714,-250.0,7.151e-05,2]
[405972347,1771487440722,-1093.95203723,7.188e-05,2]
[405972349,1771487440731,-4451.1084,7.26e-05,2]
[405972351,1771487440740,-579.65,7.298e-05,2]
[405972353,1771487440749,-1000.0,7.398e-05,2]
[405972355,1771487440759,-152.0,7.399e-05,2]
[405972357,1771487440768,-153.0,7.399e-05,2]
[405972359,1771487440777,-152.0,7.399e-05,2]
[405972361,1771487440787,-159.0,7.399e-05,2]
[405972363,1771487440796,-152.0,7.399e-05,2]
[405972365,1771487440805,-1509.0,7.399e-05,2]
[405972367,1771487440814,-152.0,7.399e-05,2]
[405972369,1771487440823,-1509.0,7.399e-05,2]
[405972371,1771487440832,-152.0,7.399e-05,2]
[405972373,1771487440841,-153.0,7.399e-05,2]
[405972375,1771487440851,-1509.0,7.399e-05,2]
[405972377,1771487440859,-153.0,7.399e-05,2]
[405972379,1771487440869,-1509.0,7.399e-05,2]
[405972381,1771487440879,-152.0,7.399e-05,2]
[405972384,1771487440888,-153.0,7.399e-05,2]
[405972385,1771487440897,-1509.0,7.399e-05,2]
[405972387,1771487440906,-152.0,7.399e-05,2]
[405972389,1771487440916,-159.0,7.399e-05,2]
[405972391,1771487440924,-153.0,7.399e-05,2]
[405972394,1771487440934,-1509.0,7.399e-05,2]
[405972396,1771487440944,-152.0,7.399e-05,2]
[405972398,1771487440953,-159.0,7.399e-05,2]
[405972399,1771487440962,-153.0,7.399e-05,2]
[405972402,1771487440972,-1509.0,7.399e-05,2]
[405972403,1771487440982,-152.0,7.399e-05,2]
[405972406,1771487440991,-159.0,7.399e-05,2]
[405972407,1771487441000,-152.0,7.399e-05,2]
[405972409,1771487441010,-1509.0,7.399e-05,2]
[405972411,1771487441019,-153.0,7.399e-05,2]
[405972413,1771487441028,-165.59213857,7.399e-05,2]
[405972416,1771487441038,-1509.0,7.399e-05,2]
[405972418,1771487441047,-153.0,7.399e-05,2]
[405972419,1771487441056,-152.0,7.399e-05,2]
[405972421,1771487441066,-1509.0,7.399e-05,2]
[405972424,1771487441075,-152.0,7.399e-05,2]
[405972425,1771487441084,-153.0,7.399e-05,2]
[405972428,1771487441097,-152.0,7.399e-05,2]
[405972430,1771487441107,-152.0,7.399e-05,2]
[405972432,1771487441119,-152.0,7.399e-05,2]
[405972434,1771487441128,-152.0,7.399e-05,2]
[405972436,1771487441138,-152.0,7.399e-05,2]
[405972438,1771487441147,-152.0,7.399e-05,2]
[405972440,1771487441156,-152.0,7.399e-05,2]
[405972442,1771487441166,-1509.0,7.399e-05,2]
[405972444,1771487441175,-152.0,7.399e-05,2]
[405972446,1771487441184,-153.0,7.399e-05,2]
[405972448,1771487441194,-1509.0,7.399e-05,2]
[405972450,1771487441203,-152.0,7.399e-05,2]
[405972452,1771487441212,-152.0,7.399e-05,2]
[405972454,1771487441221,-1509.0,7.399e-05,2]
[405972456,1771487441230,-152.0,7.399e-05,2]
[405972458,1771487441239,-1509.0,7.399e-05,2]
[405972460,1771487441248,-152.0,7.399e-05,2]
[405972462,1771487441257,-153.0,7.399e-05,2]
[405972463,1771487441266,-1509.0,7.399e-05,2]
[405972465,1771487441275,-152.0,7.399e-05,2]
[405972467,1771487441284,-153.0,7.399e-05,2]
[405972469,1771487441294,-1509.0,7.399e-05,2]
[405972471,1771487441303,-152.0,7.399e-05,2]
[405972473,1771487441312,-153.0,7.399e-05,2]
[405972475,1771487441321,-1509.0,7.399e-05,2]
[405972477,1771487441330,-152.0,7.399e-05,2]
[405972479,1771487441339,-153.0,7.399e-05,2]
[405972481,1771487441348,-1509.0,7.399e-05,2]
[405972483,1771487441357,-152.0,7.399e-05,2]
[405972485,1771487441366,-153.0,7.399e-05,2]
[405972487,1771487441375,-1509.0,7.399e-05,2]
[405972489,1771487441384,-153.0,7.399e-05,2]
[405972491,1771487441393,-152.0,7.399e-05,2]
[405972493,1771487441403,-1509.0,7.399e-05,2]
[405972495,1771487441418,-153.0,7.399e-05,2]
[405972497,1771487441427,-152.0,7.399e-05,2]
[405972500,1771487441437,-1509.0,7.399e-05,2]
[405972501,1771487441447,-153.0,7.399e-05,2]
[405972504,1771487441457,-152.0,7.399e-05,2]
[405972506,1771487441467,-153.0,7.399e-05,2]
[405972508,1771487441477,-1509.0,7.399e-05,2]
[405972510,1771487441487,-152.0,7.399e-05,2]
[405972512,1771487441497,-1509.0,7.399e-05,2]
[405972514,1771487441506,-153.0,7.399e-05,2]
[405972516,1771487441515,-1509.0,7.399e-05,2]
[405972518,1771487441523,-152.0,7.399e-05,2]
[405972520,1771487441532,-153.0,7.399e-05,2]
[405972521,1771487441541,-1509.0,7.399e-05,2]
[405972523,1771487441550,-152.0,7.399e-05,2]
[405972526,1771487441559,-153.0,7.399e-05,2]
[405972527,1771487441569,-1509.0,7.399e-05,2]
[405972529,1771487441578,-152.0,7.399e-05,2]
[405972531,1771487441587,-153.0,7.399e-05,2]
[405972534,1771487441597,-1509.0,7.399e-05,2]
[405972535,1771487441606,-153.0,7.399e-05,2]
[405972537,1771487441615,-152.0,7.399e-05,2]
[405972539,1771487441625,-1509.0,7.399e-05,2]
[405972541,1771487441634,-153.0,7.399e-05,2]
[405972543,1771487441644,-152.0,7.399e-05,2]
[405972545,1771487441653,-1509.0,7.399e-05,2]
[405972547,1771487441663,-152.0,7.399e-05,2]
[405972549,1771487441672,-153.0,7.399e-05,2]
[405972551,1771487441682,-1509.0,7.399e-05,2]
[405972553,1771487441692,-276.0,7.42e-05,2]
[405972556,1771487441702,-417.0,7.5e-05,2]
[405972557,1771487441711,-200.0,7.568e-05,2]
[405972560,1771487441721,-579.65,7.572e-05,2]
[405972562,1771487441732,-1680.0,7.588e-05,2]
[405972564,1771487441742,-250.0,7.589e-05,2]
[405972566,1771487441751,-255.0,7.698e-05,2]
[405972568,1771487441762,-1532.32,7.777e-05,2]
[405972570,1771487441771,-151.0,7.792e-05,2]
[405972572,1771487441781,-98588.87596462,7.795e-05,2]
[405972574,1771487441790,-151.0,7.795e-05,2]
[405972576,1771487441799,-151.0,7.795e-05,2]
[405972578,1771487441808,-151.0,7.795e-05,2]
[405972580,1771487441818,-151.0,7.795e-05,2]
[405972582,1771487441827,-295.797872,7.795e-05,2]
[405972584,1771487441837,-295.797872,7.795e-05,2]
[405972585,1771487441846,-295.797872,7.795e-05,2]
[405972587,1771487441854,-295.797872,7.795e-05,2]
[405972589,1771487441864,-155.0,7.799e-05,2]
[405972591,1771487441873,-579.65,7.846e-05,2]
[405972593,1771487441883,-166.67,7.851e-05,2]
[405972595,1771487441892,-160.53,7.897e-05,2]
[405972597,1771487441901,-958.0,8.082e-05,2]
[405972599,1771487441911,-579.65,8.12e-05,2]
[405972601,1771487441920,-257.9,8.135e-05,2]
[405972604,1771487441929,-359.72,8.146e-05,2]
[405972605,1771487441939,-21367.139971,8.178e-05,2]
[405972607,1771487441947,-150.0,8.219e-05,2]
[405972609,1771487441957,-500.0,8.219e-05,2]
[405972611,1771487441966,-150.06353578,8.219e-05,2]
[405972613,1771487441975,-150.0,8.219e-05,2]
[405972615,1771487441985,-500.0,8.219e-05,2]
[405972618,1771487441994,-150.14254614,8.219e-05,2]
[405972619,1771487442003,-500.0,8.219e-05,2]
[405972620,1771487442012,-500.0,8.219e-05,2]
[405972621,1771487442020,-500.0,8.219e-05,2]
[405972622,1771487442029,-150.0,8.219e-05,2]
[405972623,1771487442038,-500.0,8.219e-05,2]
[405972624,1771487442047,-500.0,8.219e-05,2]
[405972625,1771487442056,-150.0,8.219e-05,2]
[405972626,1771487442065,-500.0,8.219e-05,2]
[405972627,1771487442073,-500.0,8.219e-05,2]
[405972628,1771487442082,-150.03115694,8.219e-05,2]
[405972629,1771487442094,-500.0,8.219e-05,2]
[405972630,1771487442104,-1212.0,8.219e-05,2]
[405972632,1771487442113,-500.0,8.219e-05,2]
[405972634,1771487442122,-150.0,8.219e-05,2]
[405972635,1771487442134,-1055.0,8.219e-05,2]
[405972636,1771487442144,-500.0,8.219e-05,2]
[405972637,1771487442154,-500.0,8.219e-05,2]
[405972638,1771487442163,-861.0,8.219e-05,2]
[405972639,1771487442176,-150.0,8.219e-05,2]
[405972640,1771487442185,-500.0,8.219e-05,2]
[405972641,1771487442195,-150.0,8.219e-05,2]
[405972642,1771487442204,-935.0,8.219e-05,2]
[405972643,1771487442214,-151.0,8.219e-05,2]
[405972644,1771487442223,-151.0,8.219e-05,2]
[405972645,1771487442232,-151.0,8.219e-05,2]
[405972646,1771487442243,-151.0,8.219e-05,2]
[405972647,1771487442252,-150.0,8.219e-05,2]
[405972648,1771487442261,-500.0,8.219e-05,2]
[405972649,1771487442271,-500.0,8.219e-05,2]
[405972650,1771487442280,-150.0,8.219e-05,2]
[405972651,1771487442290,-150.0,8.219e-05,2]
[405972652,1771487442300,-150.0,8.219e-05,2]
[405972653,1771487442310,-150.0,8.219e-05,2]
[405972654,1771487442319,-1087.0,8.219e-05,2]
[405972655,1771487442328,-694.0,8.219e-05,2]
[405972656,1771487442338,-922.0,8.219e-05,2]
[405972657,1771487442348,-502.0,8.219e-05,2]
[405972658,1771487442358,-295.797872,8.219e-05,2]
[405972659,1771487442367,-295.797872,8.219e-05,2]
[405972660,1771487442377,-295.797872,8.219e-05,2]
[405972661,1771487442386,-295.797872,8.219e-05,2]
[405972662,1771487442396,-478.0,8.219e-05,2]
[405972663,1771487442405,-500.0,8.219e-05,2]
[405972664,1771487442415,-500.0,8.219e-05,2]
[405972665,1771487442425,-10883.65390549,8.219e-05,2]
[405972666,1771487442435,-264.601503,8.219e-05,2]
[405972667,1771487442446,-1000.0,8.219e-05,2]
[405972668,1771487442456,-1321.9,8.219e-05,2]
[405972669,1771487442465,-500.0,8.219e-05,2]
[405972670,1771487442475,-250.77,8.219e-05,2]
[405972671,1771487442485,-150.0,8.274e-05,2]
[405972672,1771487442495,-500.0,8.274e-05,2]
[405972673,1771487442504,-150.0,8.274e-05,2]
[405972674,1771487442513,-500.0,8.274e-05,2]
[405972675,1771487442522,-500.0,8.274e-05,2]
[405972676,1771487442532,-500.0,8.274e-05,2]
[405972677,1771487442541,-500.0,8.274e-05,2]
[405972678,1771487442550,-150.0,8.274e-05,2]
[405972679,1771487442560,-500.0,8.274e-05,2]
[405972680,1771487442570,-500.0,8.274e-05,2]
[405972681,1771487442579,-150.0,8.274e-05,2]
[405972682,1771487442589,-500.0,8.274e-05,2]
[405972683,1771487442764,-500.0,8.274e-05,2]
[405972684,1771487442774,-500.0,8.274e-05,2]
[405972685,1771487442783,-1212.0,8.274e-05,2]
[405972686,1771487442792,-500.0,8.274e-05,2]
[405972687,1771487442802,-150.0,8.274e-05,2]
[405972688,1771487442810,-1055.0,8.274e-05,2]
[405972689,1771487442819,-500.0,8.274e-05,2]
[405972690,1771487442828,-500.0,8.274e-05,2]
[405972691,1771487442838,-861.0,8.274e-05,2]
[405972692,1771487442847,-150.0,8.274e-05,2]
[405972693,1771487442856,-500.0,8.274e-05,2]
[405972694,1771487442865,-150.0,8.274e-05,2]
[405972695,1771487442874,-935.0,8.274e-05,2]
[405972696,1771487442884,-150.0,8.274e-05,2]
[405972698,1771487442893,-500.0,8.274e-05,2]
[405972699,1771487442902,-500.0,8.274e-05,2]
[405972700,1771487442911,-200.0,8.274e-05,2]
[405972701,1771487442920,-251.0,8.274e-05,2]
[405972702,1771487442929,-1087.0,8.274e-05,2]
[405972703,1771487442938,-694.0,8.274e-05,2]
[405972704,1771487442947,-922.0,8.274e-05,2]
[405972705,1771487442955,-502.0,8.274e-05,2]
[405972706,1771487442965,-478.0,8.274e-05,2]
[405972707,1771487442975,-500.0,8.274e-05,2]
[405972708,1771487442984,-500.0,8.274e-05,2]
[405972709,1771487442992,-154.187912,8.274e-05,2]
[405972710,1771487443001,-151.0,8.274e-05,2]
[405972711,1771487443010,-151.0,8.274e-05,2]
[405972712,1771487443019,-151.0,8.274e-05,2]
[405972713,1771487443028,-295.797872,8.274e-05,2]
[405972714,1771487443037,-295.797872,8.274e-05,2]
[405972715,1771487443045,-295.797872,8.274e-05,2]
[405972716,1771487443054,-295.797872,8.274e-05,2]
[405972717,1771487443063,-578.20924308,8.319e-05,2]
[405972718,1771487443072,-721.12765535,8.319e-05,2]
[405972719,1771487443081,-174.61919141,8.319e-05,2]
[405972720,1771487443089,-277.35679052,8.319e-05,2]
[405972721,1771487443103,-693.3919763,8.319e-05,2]
[405972722,1771487443111,-162.380719,8.319e-05,2]
[405972723,1771487443120,-217.15233878,8.319e-05,2]
[405972724,1771487443129,-151.0,8.328e-05,2]
[405972725,1771487443139,-151.0,8.328e-05,2]
[405972726,1771487443148,-251.991064,8.328e-05,2]
[405972727,1771487443157,-295.797872,8.328e-05,2]
[405972728,1771487443166,-295.797872,8.328e-05,2]
[405972729,1771487443177,-295.797872,8.328e-05,2]
[405972730,1771487443186,-295.797872,8.328e-05,2]
[405972731,1771487443196,-150.0,8.329e-05,2]
[405972732,1771487443205,-500.0,8.329e-05,2]
[405972733,1771487443218,-150.0,8.329e-05,2]
[405972734,1771487443228,-500.0,8.329e-05,2]
[405972735,1771487443237,-500.0,8.329e-05,2]
[405972736,1771487443247,-500.0,8.329e-05,2]
[405972737,1771487443256,-500.0,8.329e-05,2]
[405972738,1771487443265,-150.0,8.329e-05,2]
[405972739,1771487443274,-500.0,8.329e-05,2]
[405972740,1771487443284,-500.0,8.329e-05,2]
[405972741,1771487443294,-150.0,8.329e-05,2]
[405972742,1771487443304,-271.43407602,8.329e-05,2]
[405972743,1771487443314,-500.0,8.329e-05,2]
[405972744,1771487443323,-500.0,8.329e-05,2]
[405972745,1771487443332,-1212.0,8.329e-05,2]
[405972746,1771487443342,-500.0,8.329e-05,2]
[405972747,1771487443351,-166.0,8.329e-05,2]
[405972748,1771487443360,-1055.0,8.329e-05,2]
[405972749,1771487443369,-500.0,8.329e-05,2]
[405972750,1771487443379,-500.0,8.329e-05,2]
[405972751,1771487443388,-861.0,8.329e-05,2]
[405972752,1771487443398,-150.0,8.329e-05,2]
[405972753,1771487443407,-500.0,8.329e-05,2]
[405972754,1771487443417,-224.2549102,8.329e-05,2]
[405972755,1771487443426,-935.0,8.329e-05,2]
[405972756,1771487443436,-150.0,8.329e-05,2]
[405972757,1771487443446,-500.0,8.329e-05,2]
[405972758,1771487443455,-500.0,8.329e-05,2]
[405972759,1771487443465,-1087.0,8.329e-05,2]
[405972760,1771487443474,-694.0,8.329e-05,2]
[405972761,1771487443484,-922.0,8.329e-05,2]
[405972762,1771487443493,-502.0,8.329e-05,2]
[405972763,1771487443502,-478.0,8.329e-05,2]
[405972764,1771487443512,-500.0,8.329e-05,2]
[405972765,1771487443521,-500.0,8.329e-05,2]
[405972766,1771487443531,-1424.0,8.346e-05,2]
[405972767,1771487443540,-719.04747942,8.374e-05,2]
[405972768,1771487443550,-169.87857863,8.383e-05,2]
[405972769,1771487443559,-500.0,8.383e-05,2]
[405972770,1771487443569,-150.0,8.383e-05,2]
[405972771,1771487443578,-500.0,8.383e-05,2]
[405972772,1771487443588,-500.0,8.383e-05,2]
[405972773,1771487443598,-500.0,8.383e-05,2]
[405972774,1771487443608,-500.0,8.383e-05,2]
[405972775,1771487443618,-154.30170842,8.383e-05,2]
[405972776,1771487443627,-461.81298753,8.383e-05,2]
[405972777,1771487443637,-213.77554209,8.383e-05,2]
[405972778,1771487443647,-150.0,8.383e-05,2]
[405972779,1771487443656,-500.0,8.383e-05,2]
[405972780,1771487443666,-324.7107545,8.383e-05,2]
[405972781,1771487443676,-1212.0,8.383e-05,2]
[405972782,1771487443686,-500.0,8.383e-05,2]
[405972783,1771487443696,-1055.0,8.383e-05,2]
[405972784,1771487443705,-500.0,8.383e-05,2]
[405972785,1771487443714,-150.00471862,8.383e-05,2]
[405972786,1771487443723,-861.0,8.383e-05,2]
[405972787,1771487443733,-150.0,8.383e-05,2]
[405972788,1771487443744,-500.0,8.383e-05,2]
[405972789,1771487443755,-935.0,8.383e-05,2]
[405972790,1771487443764,-150.0,8.383e-05,2]
[405972791,1771487443774,-500.0,8.383e-05,2]
[405972792,1771487443783,-500.0,8.383e-05,2]
[405972793,1771487443792,-1087.0,8.383e-05,2]
[405972794,1771487443802,-694.0,8.383e-05,2]
[405972795,1771487443811,-922.0,8.383e-05,2]
[405972796,1771487443820,-502.0,8.383e-05,2]
[405972797,1771487443829,-478.0,8.383e-05,2]
[405972798,1771487443839,-500.0,8.383e-05,2]
[405972799,1771487443847,-500.0,8.383e-05,2]
[405972800,1771487443857,-579.68899915,8.394e-05,2]
[405972801,1771487443867,-347.83441324,8.401e-05,2]
[405972802,1771487443876,-151.0,8.401e-05,2]
[405972803,1771487443886,-151.0,8.401e-05,2]
[405972804,1771487443895,-295.797872,8.401e-05,2]
[405972805,1771487443904,-295.797872,8.401e-05,2]
[405972806,1771487443914,-295.797872,8.401e-05,2]
[405972807,1771487443923,-295.797876,8.401e-05,2]
[405972808,1771487443932,-745.65223616,8.429e-05,2]
[405972809,1771487443943,-500.0,8.438e-05,2]
[405972810,1771487443952,-150.0,8.438e-05,2]
[405972811,1771487443961,-500.0,8.438e-05,2]
[405972812,1771487443970,-500.0,8.438e-05,2]
[405972813,1771487443979,-500.0,8.438e-05,2]
[405972814,1771487443989,-500.0,8.438e-05,2]
[405972815,1771487443998,-157.31500769,8.438e-05,2]
[405972816,1771487444008,-500.0,8.438e-05,2]
[405972817,1771487444017,-1212.0,8.438e-05,2]
[405972818,1771487444026,-500.0,8.438e-05,2]
[405972819,1771487444035,-1055.0,8.438e-05,2]
[405972820,1771487444044,-500.0,8.438e-05,2]
[405972821,1771487444053,-861.0,8.438e-05,2]
[405972822,1771487444063,-219.42031249,8.438e-05,2]
[405972823,1771487444072,-500.0,8.438e-05,2]
[405972825,1771487444081,-935.0,8.438e-05,2]
[405972827,1771487444090,-170.73642173,8.438e-05,2]
[405972829,1771487444104,-500.0,8.438e-05,2]
[405972831,1771487444113,-500.0,8.438e-05,2]
[405972833,1771487444122,-1087.0,8.438e-05,2]
[405972834,1771487444131,-694.0,8.438e-05,2]
[405972835,1771487444141,-922.0,8.438e-05,2]
[405972836,1771487444151,-502.0,8.438e-05,2]
[405972837,1771487444160,-478.0,8.438e-05,2]
[405972838,1771487444170,-500.0,8.438e-05,2]
[405972839,1771487444179,-500.0,8.438e-05,2]
[405972840,1771487444188,-166.66,8.442e-05,2]
[405972842,1771487444198,-433.0,8.468e-05,2]
[405972844,1771487444208,-773.2413689,8.484e-05,2]
[405972845,1771487444218,-500.0,8.493e-05,2]
[405972847,1771487444227,-250.0,8.493e-05,2]
[405972848,1771487444236,-367.79717023,8.493e-05,2]
[405972849,1771487444245,-500.0,8.493e-05,2]
[405972850,1771487444254,-500.0,8.493e-05,2]
[405972851,1771487444264,-500.0,8.493e-05,2]
[405972852,1771487444273,-500.0,8.493e-05,2]
[405972853,1771487444282,-1212.0,8.493e-05,2]
[405972854,1771487444291,-500.0,8.493e-05,2]
[405972855,1771487444302,-1055.0,8.493e-05,2]
[405972856,1771487444311,-500.0,8.493e-05,2]
[405972857,1771487444323,-861.0,8.493e-05,2]
[405972858,1771487444333,-500.0,8.493e-05,2]
[405972859,1771487444342,-935.0,8.493e-05,2]
[405972860,1771487444351,-500.0,8.493e-05,2]
[405972861,1771487444361,-500.0,8.493e-05,2]
[405972862,1771487444371,-1087.0,8.493e-05,2]
[405972863,1771487444381,-694.0,8.493e-05,2]
[405972864,1771487444391,-922.0,8.493e-05,2]
[405972865,1771487444402,-502.0,8.493e-05,2]
[405972866,1771487444412,-478.0,8.493e-05,2]
[405972867,1771487444422,-500.0,8.493e-05,2]
[405972868,1771487444433,-500.0,8.493e-05,2]
[405972869,1771487444443,-500.0,8.493e-05,2]
[405972870,1771487444453,-166.67,8.499e-05,2]
[405972871,1771487444463,-801.85129955,8.539e-05,2]
[405972872,1771487444473,-500.0,8.548e-05,2]
[405972873,1771487444483,-500.0,8.548e-05,2]
[405972874,1771487444493,-499.4971749,8.548e-05,2]
[405972875,1771487444503,-500.0,8.548e-05,2]
[405972876,1771487444513,-500.0,8.548e-05,2]
[405972877,1771487444522,-1212.0,8.548e-05,2]
[405972878,1771487444531,-500.0,8.548e-05,2]
[405972879,1771487444541,-1055.0,8.548e-05,2]
[405972880,1771487444551,-500.0,8.548e-05,2]
[405972881,1771487444561,-861.0,8.548e-05,2]
[405972882,1771487444570,-500.0,8.548e-05,2]
[405972883,1771487444579,-935.0,8.548e-05,2]
[405972884,1771487444589,-500.0,8.548e-05,2]
[405972885,1771487444598,-500.0,8.548e-05,2]
[405972886,1771487444607,-1087.0,8.548e-05,2]
[405972887,1771487444617,-694.0,8.548e-05,2]
[405972888,1771487444627,-922.0,8.548e-05,2]
[405972889,1771487444637,-502.0,8.548e-05,2]
[405972890,1771487444646,-478.0,8.548e-05,2]
[405972891,1771487444656,-500.0,8.548e-05,2]
[405972892,1771487444666,-500.0,8.548e-05,2]
[405972893,1771487444675,-155.0,8.579e-05,2]
[405972894,1771487444685,-831.51979763,8.594e-05,2]
[405972895,1771487444695,-500.0,8.603e-05,2]
[405972896,1771487444705,-151.35296896,8.603e-05,2]
[405972897,1771487444715,-1212.0,8.603e-05,2]
[405972898,1771487444725,-1055.0,8.603e-05,2]